bitfinex/quotes_SOLUSD_20250130
["timestamp","ask_amount","ask_price","bid_price","bid_amount"]
[1738203071489,0.0001,235.33,235.32,48.83935369]
[1738203072215,0.0001,235.33,235.32,48.72185279]
[1738203075199,0.0001,235.33,235.32,48.78485279]
[1738203076183,0.0001,235.33,235.32,48.91034279]
[1738203076386,0.0431,235.35,235.34,20.0]
[1738203076577,0.0001,235.37,235.36,43.902374]
[1738203076892,0.0001,235.37,235.36,65.35232722]
[1738203078378,0.0001,235.37,235.36,82.62210722]
[1738203078577,1.6558,235.52,235.38,13.14647]
[1738203078799,6.4216,235.53,235.43,44.58985369]
[1738203078997,6.4216,235.53,235.43,45.22669409]
[1738203079308,1.6858,235.57,235.43,45.35218409]
[1738203080184,1.6858,235.57,235.47,20.0]
[1738203080385,0.03,235.57,235.54,20.81296969]
[1738203080587,0.03,235.57,235.55,12.98159695]
[1738203080792,0.03,235.57,235.56,23.776884]
[1738203081809,24.75987343,235.68,235.56,23.776884]
[1738203081810,13.21637343,235.68,235.64,20.0]
[1738203082103,13.21637343,235.68,235.65,36.75848095]
[1738203083509,0.03,235.68,235.66,23.776884]
[1738203083697,6.59318671,235.8,235.71,23.776884]
[1738203083894,6.59318671,235.8,235.76,12.98159695]
[1738203084206,6.59318671,235.8,235.72,12.98159695]
[1738203084583,6.59318671,235.8,235.72,20.74147489]
[1738203084989,3.3928,235.79,235.72,20.74147489]
[1738203085212,6.59318671,235.8,235.73,20.74147489]
[1738203085517,6.59318671,235.8,235.78,23.776884]
[1738203085890,6.59318671,235.8,235.79,44.51835889]
[1738203087824,6.62318671,235.8,235.79,44.51835889]
[1738203088392,0.03,235.8,235.79,44.51835889]
[1738203089305,0.03,235.8,235.74,20.74147489]
[1738203089489,0.03,235.8,235.75,20.74147489]
[1738203089689,0.03,235.8,235.77,23.776884]
[1738203090435,0.03,235.8,235.79,44.51835889]
[1738203091715,0.03,235.8,235.73,20.74147489]
[1738203091903,0.03,235.8,235.76,20.74147489]
[1738203092103,0.03,235.8,235.77,23.776884]
[1738203092800,0.03,235.8,235.79,41.48294978]
[1738203093003,3.3906,235.94,235.8,23.902374]
[1738203093214,3.3906,235.94,235.88,20.74147489]
[1738203093415,3.3906,235.94,235.89,23.776884]
[1738203093793,3.3906,235.94,235.88,23.776884]
[1738203093997,3.3902,235.97,235.88,23.776884]
[1738203094223,3.3902,235.97,235.88,20.74147489]
[1738203094827,11.8658,235.97,235.86,20.74147489]
[1738203095129,11.8658,235.97,235.87,23.776884]
[1738203095504,11.8658,235.97,235.85,20.74147489]
[1738203095695,11.8658,235.97,235.87,23.776884]
[1738203096306,11.8658,235.97,235.87,20.74147489]
[1738203096526,3.3902,235.97,235.9,20.74147489]
[1738203096696,3.39,235.99,235.94,23.776884]
[1738203096897,9.8141,236.0,235.94,23.776884]
[1738203097535,3.3898,236.0,235.94,23.776884]
[1738203097738,0.03,236.04,235.95,20.74147489]
[1738203098105,0.03,236.04,235.96,23.776884]
[1738203098307,0.03,236.04,235.96,44.51835889]
[1738203098509,0.03,236.04,235.89,0.6355281]
[1738203098510,0.03,236.04,235.98,20.74147489]
[1738203098707,0.03,236.04,235.92,20.74147489]
[1738203098708,0.03,236.04,236.0,23.776884]
[1738203099516,0.03,236.04,235.98,20.74147489]
[1738203099824,0.03,236.04,235.99,23.776884]
[1738203100331,0.03,236.04,235.98,20.74147489]
[1738203100828,0.03,236.04,235.92,20.74147489]
[1738203101036,3.3888,236.03,235.91,20.74147489]
[1738203101213,3.3888,236.03,235.9,20.74147489]
[1738203101530,3.3888,236.03,235.92,23.776884]
[1738203102137,3.3895,236.02,235.92,23.776884]
[1738203103038,6.5905,236.01,235.89,20.74147489]
[1738203103213,6.5905,236.01,235.87,20.74147489]
[1738203103545,21.0,235.98,235.82,20.74147489]
[1738203103832,21.0,235.98,235.8,20.74147489]
[1738203104006,2.0,235.95,235.79,0.063]
[1738203104214,20.0,235.91,235.79,0.063]
[1738203104542,1.5467,235.85,235.79,0.063]
[1738203104730,1.12549,235.84,235.79,0.063]
[1738203105450,0.12549,235.81,235.79,0.0001]
[1738203105835,1.0,235.8,235.79,0.0001]
[1738203106248,3.3927,235.8,235.79,0.0001]
[1738203106454,3.51819,235.8,235.79,0.0001]
[1738203106617,0.12549,235.78,235.63,20.74147489]
[1738203106818,0.12549,235.78,235.64,20.74147489]
[1738203108137,0.12549,235.76,235.65,23.776884]
[1738203108331,0.12549,235.76,235.62,20.74147489]
[1738203108332,3.51869,235.76,235.62,20.74147489]
[1738203108530,12.00189,235.76,235.62,20.74147489]
[1738203108836,6.56219,235.74,235.63,23.776884]
[1738203110034,6.4367,235.74,235.65,23.776884]
[1738203110241,11.3809,235.8,235.64,20.74147489]
[1738203110531,11.3809,235.8,235.59,4.2445]
[1738203110532,0.12549,235.77,235.62,20.74147489]
[1738203110708,20.0,235.77,235.67,23.776884]
[1738203111119,20.0,235.77,235.67,20.74147489]
[1738203112134,3.3928,235.79,235.67,20.74147489]
[1738203113833,0.12549,235.75,235.63,0.063]
[1738203114012,0.12549,235.72,235.63,0.063]
[1738203114329,1.0,235.71,235.63,0.063]
[1738203114636,2.6093,235.71,235.63,0.063]
[1738203114929,0.12549,235.65,235.63,0.063]
[1738203115640,3.395,235.64,235.63,0.063]
[1738203116651,33.8825,235.64,235.55,0.063]
[1738203116827,1.0,235.62,235.55,0.063]
[1738203117421,31.8825,235.64,235.55,0.063]
[1738203117732,11.8805,235.68,235.55,0.063]
[1738203117913,11.8805,235.68,235.57,20.74147489]
[1738203118109,11.8805,235.68,235.55,0.063]
[1738203118110,3.3944,235.68,235.6,23.776884]
[1738203119510,9.658,235.69,235.6,28.021284]
[1738203119721,3.3943,235.69,235.6,28.021284]
[1738203119920,3.3943,235.69,235.62,23.776884]
[1738203120337,3.3943,235.69,235.55,25.04967489]
[1738203120531,3.3943,235.69,235.57,20.74147489]
[1738203122024,3.3943,235.69,235.57,24.98637489]
[1738203122220,3.3943,235.69,235.59,23.776884]
[1738203122539,3.3943,235.69,235.6,20.74147489]
[1738203122741,3.3943,235.69,235.59,44.51835889]
[1738203123241,0.12549,235.68,235.57,20.74147489]
[1738203123437,2.6093,235.7,235.55,0.063]
[1738203123438,0.25098,235.66,235.55,0.063]
[1738203123933,20.0,235.64,235.55,0.063]
[1738203124138,6.5055,235.63,235.55,0.063]
[1738203124443,9.6055,235.63,235.55,0.063]
[1738203124823,20.0,235.6,235.55,0.063]
[1738203125320,3.3957,235.59,235.55,0.063]
[1738203125534,20.0,235.57,235.55,0.063]
[1738203126339,22.0,235.56,235.43,0.063]
[1738203126546,1.0,235.52,235.43,0.063]
[1738203127059,1.0,235.54,235.43,0.063]
[1738203127544,0.12549,235.49,235.43,0.063]
[1738203127974,0.25098,235.49,235.43,0.063]
[1738203128153,0.25098,235.47,235.43,0.063]
[1738203128448,23.1,235.5,235.43,0.063]
[1738203128646,0.25098,235.49,235.43,0.063]
[1738203129028,0.12549,235.47,235.43,0.063]
[1738203129443,0.25098,235.45,235.43,0.063]
[1738203130538,3.52329,235.44,235.43,0.063]
[1738203130849,3.64878,235.44,235.43,0.063]
[1738203131529,7.17207,235.44,235.43,0.063]
[1738203131742,3.52329,235.44,235.43,0.063]
[1738203135142,3.3968,235.51,235.43,0.063]
[1738203135467,3.52329,235.48,235.43,25.05187489]
[1738203135658,23.3963,235.55,235.44,23.776884]
[1738203135829,6.91959,235.55,235.45,20.74147489]
[1738203136152,26.91959,235.55,235.45,20.74147489]
[1738203136357,6.91959,235.55,235.45,20.74147489]
[1738203136864,3.52329,235.55,235.46,23.776884]
[1738203137036,3.52329,235.55,235.49,20.74147489]
[1738203137228,3.52329,235.55,235.5,23.776884]
[1738203137947,23.3956,235.6,235.5,23.776884]
[1738203138155,23.3956,235.6,235.48,23.776884]
[1738203138345,23.3956,235.6,235.49,20.74147489]
[1738203138551,3.3956,235.6,235.49,20.74147489]
[1738203138941,6.63099,235.59,235.5,4.2462]
[1738203139441,0.12549,235.58,235.46,4.2468]
[1738203139838,0.12549,235.58,235.47,23.776884]
[1738203140040,0.12549,235.58,235.43,20.80447489]
[1738203140535,0.12549,235.58,235.44,23.776884]
[1738203140536,0.12549,235.55,235.44,23.776884]
[1738203140861,0.12549,235.55,235.43,20.80447489]
[1738203140862,0.12549,235.55,235.43,0.063]
[1738203141046,0.12549,235.53,235.43,0.063]
[1738203141737,3.3964,235.54,235.44,20.74147489]
[1738203142440,3.3964,235.54,235.44,23.776884]
[1738203143567,3.3964,235.54,235.43,23.839884]
[1738203143736,6.4958,235.58,235.44,20.74147489]
[1738203144061,6.63099,235.59,235.54,23.776884]
[1738203144266,3.3947,235.66,235.55,20.74147489]
[1738203144466,3.3947,235.66,235.57,20.74147489]
[1738203144761,3.3945,235.68,235.58,23.776884]
[1738203145079,20.0,235.66,235.51,20.74147489]
[1738203145259,4.3945,235.68,235.52,23.776884]
[1738203145556,3.3945,235.68,235.58,23.776884]
[1738203145761,3.3945,235.68,235.59,20.74147489]
[1738203145956,0.03,235.69,235.61,20.74147489]
[1738203146362,3.4243,235.69,235.61,20.74147489]
[1738203147980,0.03,235.69,235.61,20.74147489]
[1738203148637,0.03,235.69,235.62,23.776884]
[1738203148867,0.03,235.69,235.65,20.74147489]
[1738203149062,0.03,235.69,235.61,24.98567489]
[1738203149250,0.03,235.69,235.59,20.74147489]
[1738203149442,3.3934,235.68,235.57,20.74147489]
[1738203149764,3.3934,235.68,235.56,12.3235]
[1738203150151,3.3947,235.66,235.56,12.3235]
[1738203150463,6.7878,235.68,235.57,20.74147489]
[1738203150662,3.3934,235.68,235.6,23.776884]
[1738203150856,3.3934,235.68,235.62,23.776884]
[1738203151163,0.03,235.69,235.64,23.776884]
[1738203151659,3.424,235.69,235.62,23.776884]
[1738203151849,6.8183,235.69,235.62,23.776884]
[1738203152465,3.424,235.69,235.62,28.020884]
[1738203152663,3.424,235.69,235.62,23.776884]
[1738203152966,6.8184,235.69,235.56,4.245]
[1738203154054,6.8184,235.69,235.55,20.74147489]
[1738203154282,6.8184,235.69,235.56,23.776884]
[1738203154470,21.404,235.69,235.55,20.74147489]
[1738203154658,23.0291,235.69,235.54,23.776884]
[1738203154860,20.0,235.66,235.54,23.776884]
[1738203155063,20.0,235.66,235.51,20.74147489]
[1738203155268,20.0,235.66,235.45,6.3508]
[1738203155269,0.12549,235.65,235.49,24.98777489]
[1738203155660,0.12549,235.65,235.5,23.776884]
[1738203155857,0.12549,235.61,235.45,20.74147489]
[1738203156066,0.12549,235.57,235.42,4.2476]
[1738203156580,0.12549,235.57,235.41,24.98927489]
[1738203157169,0.12549,235.57,235.44,23.776884]
[1738203158279,0.12549,235.55,235.44,23.776884]
[1738203158653,20.0,235.54,235.43,0.063]
[1738203158859,20.0,235.52,235.43,0.063]
[1738203159961,0.12549,235.51,235.43,0.063]
[1738203160585,0.12549,235.51,235.43,25.05187489]
[1738203160765,0.12549,235.51,235.43,20.80447489]
[1738203160960,3.52239,235.51,235.44,0.063]
[1738203162177,0.12549,235.5,235.44,0.063]
[1738203162380,0.12549,235.49,235.44,0.063]
[1738203162768,0.25098,235.47,235.44,0.063]
[1738203163478,3.3969,235.51,235.44,0.063]
[1738203163684,3.3966,235.53,235.44,23.839884]
[1738203163878,20.12549,235.52,235.44,0.063]
[1738203164065,0.12549,235.5,235.44,0.063]
[1738203164468,3.3969,235.51,235.44,0.063]
[1738203164668,1.0,235.6,235.47,20.74147489]
[1738203164962,3.3957,235.59,235.5,23.776884]
[1738203165494,0.12549,235.56,235.5,23.776884]
[1738203165873,20.0,235.57,235.5,23.776884]
[1738203166282,6.4956,235.6,235.5,23.776884]
[1738203166467,7.6005,235.61,235.52,23.776884]
[1738203166468,6.048,235.61,235.52,23.776884]
[1738203166668,9.4435,235.61,235.52,23.776884]
[1738203167191,3.1,235.65,235.54,23.776884]
[1738203167374,3.1,235.65,235.56,23.776884]
[1738203167996,3.3947,235.66,235.58,23.776884]
[1738203168172,3.4244,235.68,235.6,23.776884]
[1738203168373,0.03,235.68,235.62,23.776884]
[1738203168881,3.4244,235.68,235.6,23.776884]
[1738203169084,3.4244,235.68,235.57,20.74147489]
[1738203169085,23.4244,235.68,235.57,20.74147489]
[1738203169388,23.4244,235.68,235.55,20.74147489]
[1738203169889,0.12549,235.67,235.53,20.74147489]
[1738203170067,0.12549,235.67,235.54,23.776884]
[1738203170268,20.12549,235.65,235.54,23.776884]
[1738203170587,0.12549,235.65,235.54,23.776884]
[1738203170787,0.12549,235.65,235.56,23.776884]
[1738203171300,20.12549,235.65,235.56,23.776884]
[1738203171795,3.52049,235.64,235.56,23.776884]
[1738203171962,0.12549,235.63,235.51,24.98737489]
[1738203172167,0.12549,235.63,235.51,20.74147489]
[1738203172382,0.12549,235.63,235.49,20.74147489]
[1738203172580,0.25098,235.6,235.47,27.35897489]
[1738203172872,0.25098,235.6,235.47,31.60567489]
[1738203173072,0.25098,235.6,235.49,20.74147489]
[1738203173584,0.25098,235.6,235.5,23.776884]
[1738203173883,0.12549,235.58,235.5,23.776884]
[1738203174375,0.12549,235.58,235.47,20.74147489]
[1738203174577,0.12549,235.58,235.49,0.063]
[1738203175361,0.12549,235.58,235.52,23.776884]
[1738203175691,0.12549,235.58,235.49,0.063]
[1738203175885,3.3963,235.55,235.49,0.063]
[1738203176090,1.0,235.54,235.49,0.063]
[1738203176290,1.0,235.49,235.44,0.063]
[1738203176594,21.0,235.52,235.44,0.063]
[1738203176793,1.0,235.51,235.44,0.063]
[1738203177292,20.0,235.52,235.44,0.063]
[1738203177977,0.12549,235.49,235.44,0.063]
[1738203178585,0.12549,235.49,235.32,0.063]
[1738203178779,0.12549,235.49,235.35,20.74147489]
[1738203179276,0.12549,235.49,235.41,23.776884]
[1738203179496,0.12549,235.49,235.43,23.776884]
[1738203179792,0.25098,235.49,235.43,23.776884]
[1738203180204,0.12549,235.49,235.43,23.776884]
[1738203181112,0.12549,235.49,235.38,40.74147489]
[1738203181411,3.3958,235.58,235.48,20.74147489]
[1738203181599,3.3958,235.58,235.46,23.776884]
[1738203181792,3.3958,235.58,235.42,20.74147489]
[1738203181981,0.25098,235.55,235.43,23.776884]
[1738203182182,0.12549,235.53,235.43,28.024384]
[1738203182380,0.12549,235.53,235.43,23.776884]
[1738203182381,0.25098,235.53,235.43,23.776884]
[1738203182577,0.25098,235.53,235.41,4.2477]
[1738203183012,0.25098,235.53,235.42,23.776884]
[1738203183399,3.3967,235.52,235.42,23.776884]
[1738203183703,0.12549,235.51,235.42,23.776884]
[1738203184507,3.3959,235.58,235.5,20.74147489]
[1738203184704,3.55249,235.6,235.52,20.74147489]
[1738203184905,3.55249,235.6,235.54,20.74147489]
[1738203185203,0.12549,235.59,235.48,20.74147489]
[1738203185383,0.12549,235.59,235.46,20.74147489]
[1738203185712,3.52119,235.59,235.47,4.2468]
[1738203185906,3.52119,235.59,235.48,23.776884]
[1738203186085,20.0,235.57,235.46,20.74147489]
[1738203186284,20.0,235.57,235.43,4.2475]
[1738203186679,21.0,235.56,235.4,20.74147489]
[1738203186877,20.0,235.56,235.4,20.74147489]
[1738203187118,21.0,235.56,235.41,23.776884]
[1738203187690,3.3957,235.59,235.47,23.776884]
[1738203187887,3.3957,235.59,235.49,23.776884]
[1738203188400,0.03,235.51,235.5,20.74147489]
[1738203188586,0.03,235.51,235.5,44.51835889]
[1738203189002,0.03,235.51,235.5,48.76455889]
[1738203190609,0.03,235.51,235.5,61.78103473]
[1738203191997,0.03,235.51,235.5,23.776884]
[1738203192312,0.03,235.51,235.5,57.53483473]
[1738203192811,0.03,235.51,235.5,58.17160474]
[1738203193111,0.03,235.51,235.5,57.53483473]
[1738203193588,0.03,235.51,235.5,23.776884]
[1738203194310,0.03,235.51,235.5,57.53483473]
[1738203195816,0.03,235.51,235.48,33.75795073]
[1738203196108,0.03,235.51,235.38,33.75795073]
[1738203196322,0.03,235.51,235.38,38.00625073]
[1738203196803,0.03,235.51,235.39,23.776884]
[1738203197115,0.03,235.51,235.38,38.00625073]
[1738203197318,6.1357,235.5,235.35,6.52535559]
[1738203197488,20.0,235.47,235.35,6.52535559]
[1738203198401,20.0,235.47,235.34,23.839884]
[1738203198806,3.3976,235.46,235.35,23.776884]
[1738203198987,3.3976,235.46,235.37,23.776884]
[1738203199388,0.12549,235.45,235.34,33.82095073]
[1738203199602,0.12549,235.45,235.34,0.063]
[1738203200220,20.12549,235.45,235.34,0.063]
[1738203200593,0.12549,235.45,235.34,0.063]
[1738203201000,0.12549,235.43,235.34,0.063]
[1738203201901,20.12549,235.43,235.34,0.063]
[1738203202106,0.12549,235.4,235.34,0.063]
[1738203202790,1.78499,235.4,235.34,0.063]
[1738203202991,20.0,235.37,235.34,0.063]
[1738203204594,1.6595,235.4,235.34,0.063]
[1738203205205,5.058,235.4,235.34,0.063]
[1738203206500,0.12549,235.39,235.34,0.063]
[1738203206706,0.12549,235.37,235.34,0.063]
[1738203209824,0.12549,235.4,235.34,0.063]
[1738203210018,3.52389,235.4,235.34,0.063]
[1738203211130,0.12549,235.4,235.34,0.063]
[1738203211438,3.3981,235.42,235.34,0.063]
[1738203211622,3.3981,235.42,235.34,4.3121]
[1738203211803,23.3979,235.44,235.35,23.776884]
[1738203212004,23.3979,235.44,235.35,28.025684]
[1738203212417,3.3979,235.44,235.35,28.025684]
[1738203212717,4.9287,235.46,235.35,48.84241571]
[1738203213427,24.9287,235.46,235.35,48.84241571]
[1738203213725,23.3977,235.46,235.35,48.84241571]
[1738203213925,23.3977,235.46,235.34,0.063]
[1738203213926,3.3971,235.49,235.39,4.2482]
[1738203214133,0.03,235.51,235.42,23.776884]
[1738203214849,3.4268,235.51,235.42,23.776884]
[1738203215247,0.03,235.51,235.42,23.776884]
[1738203215649,0.03,235.51,235.44,23.776884]
[1738203216023,0.03,235.51,235.44,28.024084]
[1738203216350,0.03,235.51,235.4,4.248]
[1738203216724,0.03,235.51,235.4,28.024884]
[1738203217948,3.4268,235.51,235.4,4.248]
[1738203218132,20.0,235.48,235.36,4.2488]
[1738203219231,0.12549,235.46,235.37,23.776884]
[1738203221250,0.12549,235.46,235.39,23.776884]
[1738203221948,20.0,235.48,235.39,23.776884]
[1738203222157,3.397,235.5,235.41,23.776884]
[1738203222652,3.397,235.5,235.39,23.776884]
[1738203223025,0.03,235.51,235.39,23.776884]
[1738203223225,0.03,235.51,235.41,23.776884]
[1738203223647,0.03,235.46,235.41,23.776884]
[1738203225131,0.03,235.46,235.36,20.81673171]
[1738203225641,0.03,235.46,235.35,4.2489]
[1738203226050,0.03,235.46,235.34,0.063]
[1738203226257,0.12549,235.41,235.34,0.063]
[1738203226927,0.12549,235.39,235.34,0.063]
[1738203229355,23.3982,235.42,235.34,0.063]
[1738203229751,20.0,235.42,235.34,48.90571571]
[1738203229942,0.03,235.46,235.37,23.776884]
[1738203229943,3.4277,235.46,235.37,23.776884]
[1738203230452,3.4277,235.46,235.35,23.776884]
[1738203230856,0.03,235.46,235.35,23.776884]
[1738203231156,20.03,235.46,235.34,0.063]
[1738203232050,1.0,235.45,235.34,0.063]
[1738203232448,20.0,235.42,235.34,0.063]
[1738203233150,0.12549,235.41,235.34,0.063]
[1738203233534,0.12549,235.39,235.34,0.063]
[1738203235245,20.0,235.42,235.34,0.063]
[1738203235246,0.12549,235.4,235.34,0.063]
[1738203235761,3.3981,235.43,235.35,23.776884]
[1738203235936,3.3978,235.45,235.35,23.776884]
[1738203236143,0.12549,235.44,235.35,23.776884]
[1738203237243,20.0,235.42,235.35,23.776884]
[1738203237545,3.398,235.43,235.35,28.025784]
[1738203237748,3.3978,235.45,235.36,23.776884]
[1738203237949,3.3978,235.45,235.34,0.063]
[1738203238451,3.3978,235.45,235.34,23.839884]
[1738203238648,3.3978,235.45,235.34,28.088984]
[1738203239461,3.3978,235.45,235.34,0.063]
[1738203239654,20.0,235.43,235.34,0.063]
[1738203241064,3.3978,235.45,235.35,23.776884]
[1738203241451,0.12549,235.44,235.35,23.776884]
[1738203241752,3.52339,235.44,235.36,4.2488]
[1738203241951,3.52339,235.44,235.34,25.12873171]
[1738203242447,0.12549,235.42,235.34,0.063]
[1738203242653,20.12549,235.42,235.34,0.063]
[1738203243868,0.12549,235.4,235.34,0.063]
[1738203245354,3.52409,235.4,235.34,0.063]
[1738203246173,3.3982,235.42,235.35,23.776884]
[1738203247267,20.0,235.43,235.35,23.776884]
[1738203247447,20.03,235.43,235.35,23.776884]
[1738203248769,20.03,235.43,235.34,23.839884]
[1738203249260,3.3981,235.42,235.34,0.063]
[1738203249666,3.3981,235.42,235.34,28.088984]
[1738203249859,0.12549,235.41,235.34,28.088984]
[1738203250173,0.03,235.43,235.39,13.00645044]
[1738203250369,0.03,235.43,235.4,23.776884]
[1738203250545,0.03,235.43,235.42,23.776884]
[1738203251347,0.03,235.43,235.42,28.66154047]
[1738203252666,0.03,235.43,235.42,49.4506859]
[1738203253950,0.03,235.43,235.4,4.248]
[1738203254257,0.03,235.43,235.34,20.85214543]
[1738203254457,0.03,235.43,235.36,25.03784543]
[1738203255572,0.03,235.43,235.38,20.78914543]
[1738203256152,0.03,235.43,235.39,23.776884]
[1738203256351,0.03,235.43,235.36,25.03784543]
[1738203256757,0.03,235.43,235.37,23.776884]
[1738203257774,0.03,235.43,235.37,28.025284]
[1738203260375,0.03,235.43,235.39,23.776884]
[1738203260879,0.03,235.43,235.37,4.2484]
[1738203261247,0.03,235.43,235.35,4.2489]
[1738203261576,0.03,235.43,235.34,0.063]
[1738203261780,20.0,235.41,235.34,0.063]
[1738203262351,20.0,235.39,235.34,0.063]
[1738203263172,20.0,235.37,235.34,0.063]
[1738203264371,3.399,235.36,235.34,0.063]
[1738203265976,3.399,235.36,235.2,1.6399]
[1738203265977,0.12549,235.3,235.2,0.063]
[1738203267377,0.25098,235.3,235.2,0.063]
[1738203268292,0.25098,235.28,235.2,0.063]
[1738203270064,20.12549,235.26,235.2,0.063]
[1738203271385,0.12549,235.26,235.2,0.063]
[1738203272580,1.68846431,235.3,235.2,0.063]
[1738203272780,3.1,235.32,235.2,4.3146]
[1738203272982,7.9848,235.34,235.21,36.80431249]
[1738203273185,3.1,235.35,235.25,23.776884]
[1738203273676,0.12549,235.34,235.25,23.776884]
[1738203274266,0.12549,235.34,235.26,4.2506]
[1738203274670,3.52479,235.34,235.21,4.2515]
[1738203275076,0.12549,235.34,235.22,23.776884]
[1738203275989,4.37699,235.34,235.22,23.776884]
[1738203276191,4.37699,235.34,235.24,23.776884]
[1738203276368,8.1024,235.4,235.26,23.776884]
[1738203276568,8.1024,235.4,235.26,25.97250143]
[1738203276785,0.12549,235.39,235.26,25.97250143]
[1738203276981,0.12549,235.39,235.27,21.46917629]
[1738203277188,0.12549,235.39,235.28,23.776884]
[1738203277690,20.0,235.37,235.28,23.776884]
[1738203277989,20.0,235.37,235.27,23.776884]
[1738203278212,20.0,235.37,235.28,4.2502]
[1738203278814,0.03,235.43,235.31,20.83180807]
[1738203279108,0.03,235.43,235.35,20.83180807]
[1738203279290,0.03,235.43,235.31,20.0]
[1738203279693,0.03,235.43,235.32,23.776884]
[1738203280312,0.03,235.43,235.33,4.2493]
[1738203280492,0.03,235.43,235.34,23.776884]
[1738203282810,0.15549,235.43,235.35,4.2489]
[1738203283017,0.12549,235.42,235.35,4.2489]
[1738203284414,23.64908,235.42,235.3,4.2498]
[1738203284607,23.64908,235.42,235.22,20.83180807]
[1738203284811,0.25098,235.36,235.21,4.2515]
[1738203284995,3.1,235.35,235.21,4.2515]
[1738203285197,3.1,235.35,235.21,25.08330807]
[1738203285495,3.1,235.35,235.26,23.776884]
[1738203286608,3.1,235.35,235.24,4.2509]
[1738203286609,0.12549,235.34,235.24,4.2509]
[1738203287009,0.12549,235.31,235.24,4.2509]
[1738203287204,0.12549,235.31,235.2,0.063]
[1738203287513,0.12549,235.31,235.22,4.2513]
[1738203288818,20.12549,235.32,235.22,4.2513]
[1738203289803,23.1,235.35,235.22,4.2513]
[1738203290117,0.12549,235.31,235.22,4.2513]
[1738203290804,23.3993,235.34,235.22,4.2513]
[1738203291006,4.2513,235.3,235.22,4.2513]
[1738203291722,24.2513,235.3,235.23,23.776884]
[1738203292319,4.2513,235.3,235.22,4.2513]
[1738203292518,7.6512,235.3,235.22,4.2513]
[1738203293932,4.2513,235.3,235.22,4.2513]
[1738203294617,0.12549,235.29,235.22,4.2513]
[1738203294827,0.12549,235.29,235.2,0.063]
[1738203295127,0.12549,235.29,235.21,4.2515]
[1738203295514,0.12549,235.29,235.2,0.063]
[1738203295717,0.12549,235.24,235.2,0.063]
[1738203295912,3.4009,235.23,235.2,0.063]
[1738203296109,0.12549,235.22,235.2,0.063]
[1738203296510,6.3407,235.28,235.2,4.3146]
[1738203296708,0.12549,235.27,235.2,4.3146]
[1738203297608,4.2513,235.3,235.21,23.776884]
[1738203297814,4.2513,235.3,235.23,48.85979207]
[1738203298027,0.12549,235.34,235.26,23.776884]
[1738203299011,20.0,235.32,235.26,23.776884]
[1738203299212,0.12549,235.31,235.26,23.776884]
[1738203299620,0.03,235.35,235.24,23.776884]
[1738203299913,0.03,235.35,235.34,44.60869207]
[1738203300507,0.03,235.35,235.3,20.83180807]
[1738203300717,0.03,235.35,235.25,4.2507]
[1738203300919,0.03,235.35,235.22,20.83180807]
[1738203301135,0.03,235.35,235.23,4.251]
[1738203301430,0.03,235.35,235.24,23.776884]
[1738203302234,0.03,235.35,235.23,28.027984]
[1738203302615,0.03,235.35,235.23,41.0444748]
[1738203302810,20.0,235.32,235.2,0.063]
[1738203303841,0.12549,235.31,235.2,0.063]